fUST/lending_fUST_20260101
["ID","MTS","AMOUNT","RATE_DAILY","PERIOD"]
[400255009,1767229838334,-500.0,0.00011792,2]
[400255010,1767229838343,-500.0,0.00011792,2]
[400255011,1767229838353,-500.0,0.00011792,2]
[400255012,1767229838363,-500.0,0.00011792,2]
[400255013,1767229838373,-500.0,0.00011792,2]
[400255014,1767229838382,-164.28113978,0.00011792,2]
[400255015,1767229838391,-500.0,0.00011792,2]
[400255016,1767229838400,-500.0,0.00011792,2]
[400255017,1767229838410,-500.0,0.00011792,2]
[400255018,1767229838421,-74508.5798389,0.00011793,2]
[400255019,1767229838431,-176.25411543,0.00011811,2]
[400255020,1767229838441,-253.12300422,0.00011811,2]
[400255021,1767229838452,-1200.0,0.00011891,2]
[400255022,1767229838463,-50000.0,0.00011892,2]
[400255023,1767229838472,-192.993,0.00011893,2]
[400255024,1767229838481,-503.64606496,0.00011897,2]
[400255025,1767229838491,-151.0,0.000119,2]
[400255026,1767229838500,-151.0,0.000119,2]
[400255027,1767229838510,-151.0,0.000119,2]
[400255028,1767229838519,-151.0,0.000119,2]
[400255029,1767229838528,-151.0,0.000119,2]
[400255030,1767229838539,-151.0,0.000119,2]
[400255031,1767229838549,-151.0,0.000119,2]
[400255032,1767229838558,-151.0,0.000119,2]
[400255033,1767229838567,-151.0,0.000119,2]
[400255034,1767229838577,-151.0,0.000119,2]
[400255035,1767229838587,-151.0,0.000119,2]
[400255036,1767229838598,-151.0,0.000119,2]
[400255037,1767229838607,-151.0,0.000119,2]
[400255038,1767229838618,-6434.58941389,0.00011917,2]
[400255039,1767229838628,-348.94,0.00012138,2]
[400255040,1767229838638,-753.62,0.00012329,2]
[400255041,1767229838648,-6808.25,0.00012329,2]
[400255042,1767229838657,-5673.55,0.00012329,2]
[400255043,1767229838668,-4727.95,0.00012329,2]
[400255044,1767229838680,-3939.96,0.00012329,2]
[400255045,1767229838799,-3283.3,0.00012329,2]
[400255046,1767229838820,-2736.09,0.00012329,2]
[400255047,1767229838830,-2280.07,0.00012329,2]
[400255048,1767229838841,-1900.06,0.00012329,2]
[400255049,1767229838851,-1583.38,0.00012329,2]
[400255050,1767229838861,-1319.49,0.00012329,2]
[400255051,1767229838871,-1099.57,0.00012329,2]
[400255052,1767229838880,-916.31,0.00012329,2]
[400255053,1767229838890,-763.59,0.00012329,2]
[400255054,1767229838899,-636.33,0.00012329,2]
[400255055,1767229838908,-530.27,0.00012329,2]
[400255056,1767229838918,-441.89,0.00012329,2]
[400255057,1767229838928,-368.24,0.00012329,2]
[400255058,1767229838937,-306.87,0.00012329,2]
[400255059,1767229838947,-255.73,0.00012329,2]
[400255060,1767229838957,-213.1,0.00012329,2]
[400255061,1767229838967,-177.59,0.00012329,2]
[400255062,1767229838976,-887.96,0.00012329,2]
[400255063,1767229838987,-935.50102874,0.00012702,2]
[400255064,1767229838997,-297.0,0.00012948,2]
[400255065,1767229839007,-420.0,0.00012948,2]
[400255066,1767229839017,-1680.0,0.00013055,2]
[400255067,1767229839027,-697.88,0.00013242,2]
[400255068,1767229839036,-500.0,0.00013273,2]
[400255069,1767229839047,-500.0,0.00013273,2]
[400255070,1767229839057,-500.0,0.00013273,2]
[400255071,1767229839067,-500.0,0.00013273,2]
[400255072,1767229839077,-500.0,0.00013273,2]
[400255073,1767229839087,-500.0,0.00013273,2]
[400255074,1767229839097,-500.0,0.00013273,2]
[400255075,1767229839107,-500.0,0.00013273,2]
[400255076,1767229839117,-500.57608877,0.00013273,2]
[400255077,1767229839127,-500.0,0.00013273,2]
[400255078,1767229839136,-500.0,0.00013273,2]
[400255079,1767229839146,-500.0,0.00013273,2]
[400255080,1767229839155,-500.0,0.00013273,2]
[400255081,1767229839164,-502.38228513,0.00013273,2]
[400255082,1767229839174,-500.0,0.00013273,2]
[400255083,1767229839184,-500.0,0.00013273,2]
[400255084,1767229839193,-500.0,0.00013273,2]
[400255085,1767229839203,-500.0,0.00013273,2]
[400255086,1767229839212,-500.0,0.00013273,2]
[400255087,1767229839222,-500.0,0.00013273,2]
[400255088,1767229839231,-500.0,0.00013273,2]
[400255089,1767229839241,-500.0,0.00013273,2]
[400255090,1767229839251,-500.0,0.00013273,2]
[400255091,1767229839260,-497.28928305,0.00013273,2]
[400255092,1767229839269,-500.0,0.00013273,2]
[400255093,1767229839279,-500.0,0.00013273,2]
[400255094,1767229839288,-500.0,0.00013273,2]
[400255095,1767229839298,-500.0,0.00013273,2]
[400255096,1767229839307,-500.0,0.00013273,2]
[400255097,1767229839316,-243.28844067,0.00013273,2]
[400255098,1767229839325,-500.0,0.00013273,2]
[400255099,1767229839335,-237.48258199,0.00013351,2]
[400255100,1767229839344,-4023.02048625,0.0001354,2]
[400255101,1767229839356,-5976.97951375,0.0001354,2]
[400255102,1767229839366,-300.0,0.00013573,2]
[400255103,1767229839375,-186.3,0.00013573,2]
[400255104,1767229839384,-186.3,0.00013573,2]
[400255105,1767229839394,-186.3,0.00013573,2]
[400255106,1767229839403,-186.31,0.00013573,2]
[400255107,1767229839412,-300.0,0.00013673,2]
[400255108,1767229839422,-237.91003293,0.00013676,2]
[400255109,1767229839431,-500.0,0.00013698,2]
[400255110,1767229839441,-500.0,0.00013698,2]
[400255111,1767229839450,-500.0,0.00013698,2]
[400255112,1767229839460,-500.0,0.00013698,2]
[400255113,1767229839469,-500.0,0.00013698,2]
[400255114,1767229839478,-500.0,0.00013698,2]
[400255115,1767229839488,-287.11130988,0.00013698,2]
[400255116,1767229839498,-578.55078283,0.00013698,2]
[400255117,1767229839507,-500.0,0.00013698,2]
[400255118,1767229839517,-500.0,0.00013698,2]
[400255119,1767229839526,-500.0,0.00013698,2]
[400255120,1767229839535,-627.95351682,0.00013698,2]
[400255121,1767229839544,-500.0,0.00013698,2]
[400255122,1767229839554,-500.0,0.00013698,2]
[400255123,1767229839563,-500.0,0.00013698,2]
[400255124,1767229839573,-500.0,0.00013698,2]
[400255125,1767229839582,-500.0,0.00013698,2]
[400255126,1767229839591,-500.0,0.00013698,2]
[400255127,1767229839601,-500.0,0.00013698,2]
[400255128,1767229839611,-500.0,0.00013698,2]
[400255129,1767229839621,-500.0,0.00013698,2]
[400255130,1767229839630,-500.0,0.00013698,2]
[400255131,1767229839639,-500.0,0.00013698,2]
[400255132,1767229839649,-500.0,0.00013698,2]
[400255133,1767229839658,-500.0,0.00013698,2]
[400255134,1767229839667,-500.0,0.00013698,2]
[400255135,1767229839678,-500.0,0.00013698,2]
[400255136,1767229839689,-500.0,0.00013698,2]
[400255137,1767229839702,-500.0,0.00013698,2]
[400255138,1767229839712,-500.0,0.00013698,2]
[400255139,1767229839721,-500.0,0.00013698,2]
[400255140,1767229839730,-500.0,0.00013698,2]
[400255141,1767229839740,-500.0,0.00013698,2]
[400255142,1767229839749,-500.0,0.00013698,2]
[400255143,1767229839759,-404.88,0.00013698,2]
[400255144,1767229839769,-500.0,0.00013698,2]
[400255146,1767229839778,-500.0,0.00013698,2]
[400255147,1767229839787,-500.0,0.00013698,2]
[400255148,1767229839797,-500.0,0.00013698,2]
[400255149,1767229839806,-822.098731,0.00013699,2]
[400255150,1767229839816,-1000.0,0.00013699,2]
[400255151,1767229839826,-500.0,0.00013699,2]
[400255152,1767229839835,-500.0,0.00013699,2]
[400255153,1767229839845,-500.0,0.00013699,2]
[400255154,1767229839855,-150.0,0.00013699,2]
[400255155,1767229839864,-500.0,0.00013699,2]
[400255156,1767229839874,-500.0,0.00013699,2]
[400255158,1767229839884,-500.0,0.00013699,2]
[400255159,1767229839895,-456.9612747,0.00013699,2]
[400255160,1767229839909,-250.77471412,0.00013699,2]
[400255161,1767229839922,-538.45820579,0.00013699,2]
[400255162,1767229839935,-500.79658633,0.00013699,2]
[400255165,1767229839951,-158.89536685,0.00013699,2]
[400255166,1767229839961,-500.0,0.00013699,2]
[400255167,1767229839975,-501.41401372,0.00013699,2]
[400255168,1767229839988,-500.0,0.00013699,2]
[400255169,1767229840000,-500.5438368,0.00013699,2]
[400255170,1767229840013,-159.42700688,0.00013699,2]
[400255171,1767229840027,-500.0,0.00013699,2]
[400255172,1767229840039,-173.37826905,0.00013699,2]
[400255173,1767229840052,-500.0,0.00013699,2]
[400255174,1767229840065,-523.69125701,0.00013699,2]
[400255175,1767229840079,-500.0,0.00013699,2]
[400255176,1767229840091,-500.0,0.00013699,2]
[400255177,1767229840102,-523.8766182,0.00013699,2]
[400255178,1767229840114,-518.80741234,0.00013699,2]
[400255179,1767229840126,-223.7383736,0.00013699,2]
[400255180,1767229840137,-506.69804643,0.00013699,2]
[400255181,1767229840149,-500.0,0.00013699,2]
[400255182,1767229840163,-166.17180418,0.00013699,2]
[400255183,1767229840174,-500.20372006,0.00013699,2]
[400255184,1767229840186,-455.93432495,0.00013699,2]
[400255185,1767229840196,-500.0,0.00013699,2]
[400255186,1767229840207,-500.0,0.00013699,2]
[400255187,1767229840218,-500.32148679,0.00013699,2]
[400255188,1767229840230,-500.0,0.00013699,2]
[400255189,1767229840242,-501.54886217,0.00013699,2]
[400255190,1767229840254,-636.73974447,0.00013699,2]
[400255191,1767229840267,-500.0,0.00013699,2]
[400255192,1767229840280,-500.0,0.00013699,2]
[400255193,1767229840294,-599.35395839,0.00013699,2]
[400255194,1767229840307,-500.30541626,0.00013699,2]
[400255195,1767229840320,-500.77567295,0.00013699,2]
[400255196,1767229840333,-500.0,0.00013699,2]
[400255197,1767229840344,-500.0,0.00013699,2]
[400255198,1767229840354,-500.0,0.00013699,2]
[400255199,1767229840365,-500.91915273,0.00013699,2]
[400255200,1767229840377,-500.3719998,0.00013699,2]
[400255201,1767229840389,-500.0,0.00013699,2]
[400255202,1767229840403,-500.0,0.00013699,2]
[400255203,1767229840416,-500.0,0.00013699,2]
[400255204,1767229840426,-500.0,0.00013699,2]
[400255205,1767229840437,-1000.0,0.00013821,2]
[400255206,1767229840448,-999.60347753,0.00013821,2]
[400255207,1767229840459,-1000.0,0.00013821,2]
[400255208,1767229840471,-1000.0,0.00013821,2]
[400255209,1767229840481,-1000.0,0.00013821,2]
[400255210,1767229840492,-1000.0,0.00013821,2]
[400255211,1767229840503,-1000.0,0.00013821,2]
[400255212,1767229840514,-168.34737969,0.00013821,2]
[400255213,1767229840525,-1000.0,0.00013821,2]
[400255214,1767229840536,-587.16600099,0.00013821,2]
[400255215,1767229840548,-1000.0,0.00013821,2]
[400255216,1767229840560,-500.0,0.00013821,2]
[400255217,1767229840572,-1000.87439089,0.00013821,2]
[400255218,1767229840583,-500.64750474,0.00013821,2]
[400255219,1767229840593,-1000.0,0.00013821,2]
[400255220,1767229840605,-500.0,0.00013821,2]
[400255221,1767229840616,-1000.0,0.00013821,2]
[400255222,1767229840627,-1000.0,0.00013821,2]
[400255223,1767229840639,-1000.0,0.00013821,2]
[400255224,1767229840650,-1015.78099865,0.00013821,2]
[400255225,1767229840661,-510.07885652,0.00013821,2]
[400255226,1767229840673,-1000.0,0.00013821,2]
[400255227,1767229840687,-647.5255743,0.00013821,2]
[400255228,1767229840698,-496.6724633,0.00013821,2]
[400255229,1767229840710,-1000.0,0.00013821,2]
[400255230,1767229840720,-214.90572917,0.00013821,2]
[400255231,1767229840733,-151.0,0.00013821,2]
[400255232,1767229840745,-600.0,0.00014221,2]
[400255233,1767229840757,-500.0,0.00014247,2]
[400255234,1767229840768,-1000.0,0.00014247,2]
[400255235,1767229840780,-1000.0,0.00014247,2]
[400255236,1767229840791,-250.0,0.00014247,2]
[400255237,1767229840802,-1080.75858867,0.00014247,2]
[400255238,1767229840813,-1001.34313596,0.00014247,2]
[400255239,1767229840825,-1000.0,0.00014247,2]
[400255240,1767229840836,-1000.0,0.00014247,2]
[400255241,1767229840846,-980.31888619,0.00014247,2]
[400255242,1767229840857,-1000.0,0.00014247,2]
[400255243,1767229840868,-1000.0,0.00014247,2]
[400255244,1767229840880,-1000.48930334,0.00014247,2]
[400255245,1767229840891,-1000.0,0.00014247,2]
[400255246,1767229840903,-631.15980774,0.00014247,2]
[400255247,1767229840914,-1000.0,0.00014247,2]
[400255248,1767229840925,-1000.0,0.00014247,2]
[400255249,1767229840935,-191.58046107,0.00014247,2]
[400255250,1767229840946,-1000.0,0.00014247,2]
[400255251,1767229840957,-507.16623817,0.00014247,2]
[400255252,1767229840968,-1000.0,0.00014247,2]
[400255253,1767229840979,-1046.82,0.00014303,2]
[400255254,1767229840990,-541.08539316,0.00014368,2]
[400255255,1767229841002,-1503.61398268,0.00014368,2]
[400255256,1767229841013,-1500.0,0.00014368,2]
[400255257,1767229841023,-1500.0,0.00014368,2]
[400255258,1767229841034,-1500.0,0.00014368,2]
[400255259,1767229841046,-1500.0,0.00014368,2]
[400255260,1767229841057,-1500.0,0.00014368,2]
[400255261,1767229841068,-1000.86488502,0.00014368,2]
[400255262,1767229841080,-540.12084556,0.00014368,2]
[400255263,1767229841091,-500.0,0.00014368,2]
[400255264,1767229841102,-6434.58941386,0.00014663,2]
[400255265,1767229841111,-763.48675578,0.00014768,2]
[400255266,1767229841120,-493.36952203,0.00014795,2]
[400255267,1767229841129,-250.0,0.00014795,2]
[400255268,1767229841139,-1033.33601752,0.00014795,2]
[400255269,1767229841148,-500.0,0.00014795,2]
[400255270,1767229841158,-1500.0,0.00014795,2]
[400255271,1767229841167,-1000.0,0.00014795,2]
[400255272,1767229841176,-382.03913089,0.00014795,2]
[400255273,1767229841186,-1001.38295582,0.00014795,2]
[400255274,1767229841352,-1500.0,0.00014795,2]
[400255275,1767229841371,-500.0,0.00014795,2]
[400255276,1767229841393,-95215.91001562,0.00014882,2]
[400255277,1767229841408,-491.097347,0.00014882,2]
[400255278,1767229841418,-491.097347,0.00014882,2]
[400255279,1767229841428,-151.0,0.00014882,2]
[400255280,1767229841437,-491.097347,0.00014882,2]
[400255281,1767229841448,-491.097347,0.00014882,2]
[400255282,1767229841458,-532.940518,0.00014882,2]
[400255283,1767229841467,-532.940518,0.00014882,2]
[400255284,1767229841478,-532.940518,0.00014882,2]
[400255285,1767229841487,-532.940518,0.00014882,2]
[400255286,1767229841496,-151.0,0.00014882,2]
[400255287,1767229841508,-1000.0,0.00014916,2]
[400255288,1767229841518,-304.0948073,0.00014916,2]
[400255289,1767229841528,-169.550149,0.00015068,2]
[400255290,1767229841538,-151.0,0.00015342,2]
[400255291,1767229841547,-2000.0,0.00015342,2]
[400255292,1767229841558,-2000.0,0.00015342,2]
[400255293,1767229841569,-273.70873856,0.00015351,2]
[400255294,1767229841578,-1395.75,0.00015403,2]
[400255295,1767229841588,-238.14794296,0.00015723,2]
[400255296,1767229841598,-251.86454177,0.00015764,2]
[400255297,1767229841607,-2500.0,0.0001589,2]
[400255298,1767229841617,-2500.0,0.0001589,2]
[400255299,1767229841626,-151.0,0.00016438,2]
[400255300,1767229841635,-151.0,0.00016438,2]
[400255301,1767229841645,-151.0,0.00016438,2]
[400255302,1767229841654,-289.342021,0.00016438,2]
[400255303,1767229841663,-151.0,0.00016438,2]
[400255304,1767229841673,-151.0,0.00016438,2]
[400255305,1767229841685,-151.0,0.00016438,2]
[400255306,1767229841694,-151.0,0.00016438,2]
[400255307,1767229841704,-151.0,0.00016438,2]
[400255308,1767229841713,-151.0,0.00016438,2]
[400255309,1767229841722,-3000.0,0.00016438,2]
[400255310,1767229841732,-3000.0,0.00016438,2]
[400255311,1767229841742,-1744.69,0.00016504,2]
[400255312,1767229841752,-1637.28070511,0.00016986,2]
[400255313,1767229841761,-2004.20780125,0.00016986,2]
[400255314,1767229841771,-309.93489514,0.00017351,2]
[400255315,1767229841780,-6434.58941386,0.00017409,2]
[400255316,1767229841790,-2093.63,0.00017604,2]
[400255317,1767229841799,-1041.66666667,0.00018031,2]
[400255318,1767229841809,-496.47127164,0.00018112,2]
[400255319,1767229841819,-500.0,0.00018112,2]
[400255320,1767229841828,-500.0,0.00018112,2]
[400255321,1767229841837,-500.0,0.00018112,2]
[400255322,1767229841847,-500.0,0.00018112,2]
[400255323,1767229841856,-500.0,0.00018112,2]
[400255324,1767229841865,-500.0,0.00018112,2]
[400255325,1767229841874,-500.0,0.00018112,2]
[400255326,1767229841883,-500.0,0.00018112,2]
[400255327,1767229841892,-500.0,0.00018112,2]
[400255328,1767229841901,-500.0,0.00018112,2]
[400255329,1767229841910,-500.0,0.00018112,2]
[400255330,1767229841919,-500.0,0.00018112,2]
[400255331,1767229841927,-500.0,0.00018112,2]
[400255332,1767229841936,-500.0,0.00018112,2]
[400255333,1767229841946,-500.0,0.00018112,2]
[400255334,1767229841955,-1000.0,0.00018112,2]
[400255335,1767229841964,-1000.0,0.00018112,2]
[400255336,1767229841973,-1000.0,0.00018112,2]
[400255337,1767229841982,-514.84070869,0.0001866,2]
[400255338,1767229841991,-2442.57,0.00018704,2]
[400255339,1767229842000,-269.247383,0.000189,2]
[400255340,1767229842009,-151.000017,0.00019178,2]
[400255341,1767229842019,-151.0,0.00019178,2]
[400255342,1767229842028,-151.0,0.00019178,2]
[400255343,1767229842037,-180.3,0.00019313,2]
[400255344,1767229842046,-346.16105171,0.00019351,2]
[400255345,1767229842055,-159.88,0.000194,2]
[400255346,1767229842064,-165.23,0.000194,2]
[400255347,1767229842073,-13766.27,0.000194,2]
[400255348,1767229842082,-937.38,0.000194,2]
[400255349,1767229842091,-152.17249168,0.00019563,7]
[400255350,1767229842100,-553.64373807,0.00019756,2]
[400255351,1767229842109,-2791.51,0.00019804,2]
[400255352,1767229842118,-6434.58941386,0.00020154,2]
[400255353,1767229842127,-822.098731,0.00020187,2]
[400255354,1767229842136,-574.12855637,0.00020304,2]
[400255355,1767229842145,-595.37131296,0.00020852,2]
[400255356,1767229842153,-3140.45,0.00020905,2]
[400255357,1767229842162,-180.3,0.00020957,2]
[400255358,1767229842172,-382.38720828,0.00021351,2]
[400255359,1767229842180,-617.40005154,0.000214,2]
[400255360,1767229842190,-924.08,0.00021917,2]
[400255361,1767229842198,-726.32,0.00021917,2]
[400255362,1767229842208,-500.0,0.00021917,2]
[400255363,1767229842217,-934.93,0.00021917,2]
[400255364,1767229842226,-500.0,0.00021917,2]
[400255365,1767229842235,-500.0,0.00021917,2]
[400255366,1767229842244,-500.0,0.00021917,2]
[400255367,1767229842253,-500.0,0.00021917,2]
[400255368,1767229842263,-722.66,0.00021917,2]
[400255369,1767229842272,-500.0,0.00021917,2]
[400255370,1767229842281,-1000.0,0.00021917,2]
[400255371,1767229842291,-500.0,0.00021917,2]
[400255372,1767229842300,-491.097347,0.00021917,2]
[400255373,1767229842310,-491.097347,0.00021917,2]
[400255374,1767229842319,-491.097347,0.00021917,2]
[400255375,1767229842328,-491.097347,0.00021917,2]
[400255376,1767229842337,-151.0,0.00021917,2]
[400255377,1767229842346,-151.0,0.00021917,2]
[400255378,1767229842356,-1441.19,0.00021917,2]
[400255379,1767229842366,-532.940518,0.00021917,2]
[400255380,1767229842375,-532.940518,0.00021917,2]
[400255381,1767229842384,-532.940518,0.00021917,2]
[400255382,1767229842395,-500.0,0.00021917,2]
[400255383,1767229842404,-532.940518,0.00021917,2]
[400255384,1767229842413,-4710.53,0.00021917,2]
[400255385,1767229842422,-1000.0,0.00021917,2]
[400255386,1767229842431,-500.0,0.00021917,2]
[400255387,1767229842440,-500.0,0.00021917,2]
[400255388,1767229842449,-500.0,0.00021917,2]
[400255389,1767229842458,-5241.9,0.00021917,2]
[400255390,1767229842467,-500.0,0.00021917,2]
[400255391,1767229842477,-500.0,0.00021917,2]
[400255392,1767229842486,-1458.32,0.00021917,2]
[400255393,1767229842496,-639.79,0.00021917,2]
[400255394,1767229842506,-500.0,0.00021917,2]
[400255395,1767229842515,-759.62,0.00021917,2]
[400255396,1767229842524,-500.0,0.00021917,2]
[400255397,1767229842533,-200.0,0.00021917,3]
[400255398,1767229842542,-200.0,0.00021917,3]
[400255399,1767229842551,-200.0,0.00021917,3]
[400255400,1767229842560,-200.0,0.00021917,3]
[400255401,1767229842569,-200.0,0.00021917,3]
[400255402,1767229842578,-200.0,0.00021917,3]
[400255403,1767229842587,-171.760476,0.00021917,2]
[400255404,1767229842597,-1114.21,0.00021917,2]
[400255405,1767229842607,-500.0,0.00021917,2]
[400255406,1767229842616,-500.0,0.00021917,2]
[400255407,1767229842630,-216.50671489,0.00021917,2]
[400255408,1767229842646,-151.0,0.00021917,2]
[400255409,1767229842655,-500.0,0.00021917,2]
[400255410,1767229842665,-500.0,0.00021917,2]
[400255411,1767229842675,-640.24385345,0.00021948,2]
[400255412,1767229842691,-303.33,0.00022,7]
[400255413,1767229842701,-3489.39,0.00022005,2]
[400255414,1767229842710,-924.08,0.00022191,2]
[400255415,1767229842719,-726.32,0.00022191,2]
[400255416,1767229842730,-151.0,0.00022191,2]
[400255418,1767229842739,-151.0,0.00022191,2]
[400255419,1767229842750,-151.0,0.00022191,2]
[400255420,1767229842762,-151.0,0.00022191,2]
[400255421,1767229842771,-151.0,0.00022191,2]
[400255422,1767229842781,-151.0,0.00022191,2]
[400255423,1767229842792,-151.0,0.00022191,2]
[400255424,1767229842802,-243.33111,0.00022191,2]
[400255425,1767229842811,-934.93,0.00022191,2]
[400255426,1767229842820,-500.0,0.00022191,2]
[400255427,1767229842830,-500.0,0.00022191,2]
[400255428,1767229842839,-500.0,0.00022191,2]
[400255429,1767229842849,-636.30921461,0.00022191,2]
[400255430,1767229842858,-722.66,0.00022191,2]
[400255431,1767229842867,-500.0,0.00022191,2]
[400255432,1767229842876,-924.08865171,0.00022191,2]
[400255433,1767229842885,-500.0,0.00022191,2]
[400255434,1767229842895,-151.0,0.00022191,2]
[400255435,1767229842904,-185.705929,0.00022191,2]
[400255436,1767229842913,-1441.19,0.00022191,2]
[400255437,1767229842922,-532.940518,0.00022191,2]
[400255438,1767229842931,-532.940518,0.00022191,2]
[400255439,1767229842941,-532.940518,0.00022191,2]
[400255440,1767229842950,-500.0,0.00022191,2]
[400255441,1767229842959,-532.940518,0.00022191,2]
[400255442,1767229842968,-4710.53,0.00022191,2]
[400255443,1767229842977,-1000.0,0.00022191,2]
[400255444,1767229842987,-500.0,0.00022191,2]
[400255445,1767229842996,-500.0,0.00022191,2]
[400255446,1767229843005,-5241.9,0.00022191,2]
[400255447,1767229843014,-500.0,0.00022191,2]
[400255448,1767229843023,-500.0,0.00022191,2]
[400255449,1767229843032,-1458.32,0.00022191,2]
[400255450,1767229843042,-639.79,0.00022191,2]
[400255451,1767229843052,-500.0,0.00022191,2]
[400255452,1767229843061,-759.62,0.00022191,2]
[400255453,1767229843071,-500.0,0.00022191,2]
[400255454,1767229843080,-1114.21,0.00022191,2]
[400255455,1767229843089,-500.0,0.00022191,2]
[400255456,1767229843098,-500.0,0.00022191,2]
[400255457,1767229843107,-500.0,0.00022191,2]
[400255458,1767229843116,-500.0,0.00022191,2]
[400255459,1767229843125,-608.08127676,0.00022316,7]
[400255460,1767229843135,-924.08,0.00022465,2]
[400255461,1767229843144,-726.32,0.00022465,2]
[400255462,1767229843153,-269.47212069,0.00022465,2]
[400255463,1767229843162,-485.04981724,0.00022465,2]
[400255464,1767229843171,-862.3107862,0.00022465,2]
[400255465,1767229843180,-934.93,0.00022465,2]
[400255466,1767229843189,-500.0,0.00022465,2]
[400255467,1767229843199,-500.0,0.00022465,2]
[400255468,1767229843208,-500.0,0.00022465,2]
[400255469,1767229843217,-722.66,0.00022465,2]
[400255470,1767229843226,-500.0,0.00022465,2]
[400255471,1767229843235,-500.0,0.00022465,2]
[400255472,1767229843244,-1441.19,0.00022465,2]
[400255473,1767229843254,-500.0,0.00022465,2]
[400255474,1767229843263,-4710.53,0.00022465,2]
[400255475,1767229843272,-1000.0,0.00022465,2]
[400255476,1767229843281,-500.0,0.00022465,2]
[400255477,1767229843290,-500.0,0.00022465,2]
[400255478,1767229843299,-5241.9,0.00022465,2]
[400255479,1767229843308,-500.0,0.00022465,2]
[400255480,1767229843317,-500.0,0.00022465,2]
[400255481,1767229843326,-1458.32,0.00022465,2]
[400255482,1767229843335,-639.79,0.00022465,2]
[400255483,1767229843344,-500.0,0.00022465,2]
[400255484,1767229843354,-759.62,0.00022465,2]
[400255485,1767229843363,-500.0,0.00022465,2]
[400255486,1767229843372,-1114.21,0.00022465,2]
[400255487,1767229843382,-500.0,0.00022465,2]
[400255488,1767229843391,-500.0,0.00022465,2]
[400255489,1767229843401,-500.0,0.00022465,2]
[400255490,1767229843411,-500.0,0.00022465,2]
[400255491,1767229843421,-663.93287602,0.00022496,2]
[400255492,1767229843430,-2311.79036029,0.0002254,2]
[400255493,1767229843439,-71067.57062919,0.000226,2]
[400255494,1767229843449,-156.562526,0.000226,2]
[400255495,1767229843458,-180.3,0.00022602,2]
[400255496,1767229843467,-924.08,0.00022739,2]
[400255497,1767229843476,-726.32,0.00022739,2]
[400255498,1767229843485,-934.93,0.00022739,2]
[400255499,1767229843495,-500.0,0.00022739,2]
[400255500,1767229843504,-500.0,0.00022739,2]
[400255501,1767229843513,-500.0,0.00022739,2]
[400255502,1767229843522,-722.66,0.00022739,2]
[400255503,1767229843531,-500.0,0.00022739,2]
[400255504,1767229843540,-500.0,0.00022739,2]
[400255506,1767229843550,-1441.19,0.00022739,2]
[400255507,1767229843559,-4710.53,0.00022739,2]
[400255508,1767229843568,-999.99999997,0.00022739,2]
[400255509,1767229843577,-500.0,0.00022739,2]
[400255510,1767229843586,-500.0,0.00022739,2]
[400255511,1767229843596,-5241.9,0.00022739,2]
[400255512,1767229843605,-500.0,0.00022739,2]
[400255513,1767229843615,-500.0,0.00022739,2]
[400255514,1767229843625,-1458.32,0.00022739,2]